Cogmind - Beta 14 @@@ ROGUE MODE // 2025.03.25 @ 15:28:05 Player: Crud Result: Destroyed by X-62 Marksman with Gauss Rifle Performance ------------- Evolutions (2) 1000 Regions Visited (5) 1000 Robots Destroyed (14) 70 Value Destroyed (448) 448 Prototype IDs (1) 20 Alien Tech Used (0) 0 Bonus (14) 14 TOTAL SCORE: 2552 Bonus ------- Follower Combat Kills 14 Cogmind --------- Core Integrity 0/550 Matter 270/300 Energy 100/100 System Corruption 5% Temperature Cool (0) Movement Core (50) Location -8/Materials Parts ------- > --- POWER (1) -------- (None) > --- PROPULSION (3) --- (None) > --- UTILITY (4) ------ Signal Interpreter Terrain Scan Processor > --- WEAPON (3) ------- Hammer > --- INVENTORY (5) ---- Improved Heat Sink Small Battery (100) Medium Matter Pod (100) Weapon Cycler Advanced Beam Rifle Peak State ------------ > --- POWER ------------ Light Nuclear Core > --- PROPULSION ------- Aluminum Leg Aluminum Leg > --- UTILITY ---------- Small Storage Unit Seismic Detector Insulated Plating Insulated Plating > --- WEAPON ----------- EM Pulse Gun Light Assault Rifle Heavy Assault Rifle > --- INVENTORY -------- Ion Engine Flight Unit Small Battery Medium Matter Pod Visual Processing Unit Signal Interpreter Particle Gun Datajack [Rating: 18] Favorites ----------- Power Light Ion Engine Engine Light Ion Engine Power Core Light Nuclear Core Propulsion Aluminum Leg Leg Aluminum Leg Flight Unit Flight Unit Utility Small Storage Unit Device Seismic Detector Storage Small Storage Unit Processor Signal Interpreter Protection Insulated Plating Weapon Light Assault Rifle Energy Gun EM Pulse Gun Ballistic Gun Light Assault Rifle Impact Weapon Hammer Special Melee Weapon Datajack Build | -11 -10 -10 -9 -9 -8 ------- Run | Yrd Mat Min Mat Min Mat Slots Evolved 4 | . . . 2 . 2 Power . | . . . . . . Propulsion 1 | . . . . . 1 Utility 2 | . . . 2 . . Weapon 1 | . . . . . 1 Parts Attached 23 | . 2 1 1 . 19 Power 4 | . . 1 . . 3 Engine 2 | . . . . . 2 Core 2 | . . 1 . . 1 Reactor . | . . . . . . Propulsion 3 | . . . . . 3 Treads . | . . . . . . Leg . | . . . . . . Wheel . | . . . . . . Hover . | . . . . . . Flight 3 | . . . . . 3 Utility 7 | . 2 . . . 5 Device 1 | . 1 . . . . Storage 1 | . 1 . . . . Processor 3 | . . . . . 3 Hackware . | . . . . . . Protection 2 | . . . . . 2 Artifact . | . . . . . . Weapon 9 | . . . 1 . 8 Energy Gun 4 | . . . . . 4 Energy Cannon . | . . . . . . Ballistic Gun 2 | . . . 1 . 1 Ballistic Cannon . | . . . . . . Launcher . | . . . . . . Special Weapon . | . . . . . . Impact Weapon 2 | . . . . . 2 Slashing Weapon . | . . . . . . Piercing Weapon . | . . . . . . Special Melee Weapon 1 | . . . . . 1 Unidentified Prototypes 1 | . . . . . 1 Parts Lost 21 | . . 1 . . 20 Power 5 | . . 1 . . 4 Propulsion 5 | . . . . . 5 Utility 5 | . . . . . 5 Weapon 6 | . . . . . 6 Highest Loss Streak 12 | . . 1 . . 12 To Critical Strikes . | . . . . . . Average Slot Usage (%) 80 | . 99 98 77 77 63 Engine 6 | . 14 . . . 5 Core 4 | . . 12 11 11 2 Leg 16 | . 28 28 22 22 3 Flight 4 | . . . . . 11 Device 7 | . 10 14 11 11 1 Storage 11 | . 16 14 11 11 6 Processor 6 | . . . . . 15 Protection 1 | . . . . . 2 Energy Gun 1 | . . . . . 3 Ballistic Gun 17 | . 28 28 22 22 5 Impact Weapon 2 | . . . . . 4 Peak Build Rating 18 | . 7 9 11 11 18 Average Rating 9 | . 6 8 9 11 11 On Entrance 8 | 6 6 7 9 11 11 Naked Turns . | . . . . . . Heaviest Build 23 | 11 13 14 15 15 23 Greatest Support 20 | 20 20 20 20 20 20 Greatest Overweight (x) 3 | . . . . . 3 Average Overweight (x) . | . . . . . . Largest Inventory Capacity 8 | . 8 8 8 8 8 Average Capacity 7 | . 8 8 8 8 7 Most Carried 8 | . 8 8 8 8 8 Average Carried 6 | . 7 8 7 8 5 Final Capacity 8 | 8 8 8 8 8 5 Final Carried 8 | 6 8 8 8 8 5 Class Distribution -------------------- 72% | Mutant 18% | Scavenger-Mutant 5% | Tank 3% | Gunner Dominant Class ---------------- Mutant | -10/Materials Mutant | -10/Mines Mutant | -9/Materials Mutant | -9/Mines Scavenger-Mutant | -8/Materials Resources | -11 -10 -10 -9 -9 -8 ----------- Run | Yrd Mat Min Mat Min Mat Matter Collected 576 | 196 160 53 . . 167 Remotely . | . . . . . . Salvage Created 417 | . 57 79 . . 281 Parts 22 | . 6 6 . . 10 Haulers Intercepted . | . . . . . . Recyclers Shooed 2 | . 1 . . . 1 Parts Field Recycled . | . . . . . . Retrieved Matter . | . . . . . . Parts Self-Destructed . | . . . . . . Prevented . | . . . . . . Kills | -11 -10 -10 -9 -9 -8 ------- Run | Yrd Mat Min Mat Min Mat Combat Hostiles Destroyed 13 | . 1 2 . . 10 Guns 10 | . 1 2 . . 7 AOE 1 | . . . . . 1 Classes Destroyed 5 | . 2 . . . 3 Watcher 1 | . 1 . . . . Swarmer 5 | . . . . . 5 Grunt 4 | . 1 2 . . 1 Sentry 2 | . . . . . 2 Hunter 2 | . . . . . 2 Best Kill Streak 3 | . 1 2 . . 3 Combat Bots Only 3 | . 1 2 . . 3 Max Kills in Single Turn 1 | . 1 1 . . 1 Gunslinging . | . . . . . . Exploded 1 | . . . . . 1 Melee . | . . . . . . Uniques/NPCs Destroyed . | . . . . . . Combat | -11 -10 -10 -9 -9 -8 -------- Run | Yrd Mat Min Mat Min Mat Hostile Shots Fired 211 | . 10 12 6 . 183 Missed 60 | . . 5 2 . 53 Damage Taken 2199 | . 113 104 54 . 1928 Core 592 | . 23 . . . 569 Absorbed by Shields . | . . . . . . Core Remaining (%) 96 | 100 . 90 . 100 . Volleys Fired 56 | . 14 7 . . 35 Largest 3 | . 2 2 . . 3 Hottest 83 | . 40 40 . . 83 Shots Fired 107 | . 28 14 . . 65 Gun 107 | . 28 14 . . 65 Cannon . | . . . . . . Launcher . | . . . . . . Special . | . . . . . . Kinetic 88 | . 28 14 . . 46 Thermal 7 | . . . . . 7 Explosive . | . . . . . . Electromagnetic 12 | . . . . . 12 Robot Hit Streak 21 | . 13 4 . . 21 Robot Miss Streak 4 | . 2 2 . . 4 Penetration Max . | . . . . . . Secondary Targets 2 | . . . . . 2 Max Gunslinging Chain 1 | . . . . . 1 Shots Hit Robots 82 | . 20 8 . . 54 Core Hits 27 | . 7 5 . . 15 Critical Kills . | . . . . . . Critical Parts Destroyed . | . . . . . . Critical Strikes . | . . . . . . Melee Attacks 58 | . . . . . 58 Impact 55 | . . . . . 55 Slashing . | . . . . . . Piercing . | . . . . . . Sneak Attacks . | . . . . . . Combat Hostiles . | . . . . . . Follow-up Attacks . | . . . . . . Damage Inflicted 1071 | . 225 79 . . 767 Guns 786 | . 225 79 . . 482 Cannons . | . . . . . . Explosions 41 | . . . . . 41 Melee 244 | . . . . . 244 Ramming . | . . . . . . Kinetic 612 | . 225 79 . . 308 Thermal 130 | . . . . . 130 Explosive . | . . . . . . Electromagnetic 85 | . . . . . 85 Impact 244 | . . . . . 244 Slashing . | . . . . . . Piercing . | . . . . . . Highest Corruption 5 | . . . . . 5 Average Corruption 4 | . . . . . 4 Corruption Purged . | . . . . . . Corruption Blocked . | . . . . . . Effects 5 | . . . . . 5 Message Errors 4 | . . . . . 4 Data Loss (major) 1 | . . . . . 1 Overload Shots . | . . . . . . Overflow Damage 14 | . . . . . 14 Projectiles . | . . . . . . Explosions . | . . . . . . Melee 14 | . . . . . 14 Knockbacks 1 | . . . . . 1 Impact 1 | . . . . . 1 Kinetic . | . . . . . . Secondary . | . . . . . . Self-Inflicted Damage . | . . . . . . Shots . | . . . . . . Rammed . | . . . . . . Targets Rammed . | . . . . . . Kicked . | . . . . . . Crushed . | . . . . . . Highest Temperature 325 | . 12 10 . . 325 Average Temperature 115 | . 7 5 . . 133 Received Heat Transfer 375 | . 60 57 15 . 243 Siege Activations . | . . . . . . Robots Corrupted 1 | . . . . . 1 Combat Hostiles 1 | . . . . . 1 Parts Fried 1 | . . . . . 1 Impact Corruptions 1 | . . . . . 1 Robots Melted . | . . . . . . Combat Hostiles . | . . . . . . Parts Melted 1 | . . . . . 1 Heat Transferred 185 | . . . . . 185 Parts Sabotaged . | . . . . . . Parts Stolen . | . . . . . . Parts Stripped . | . . . . . . Power Chain Reactions 1 | . . . . . 1 Alert | -11 -10 -10 -9 -9 -8 ------- Run | Yrd Mat Min Mat Min Mat Peak Influence 247 | . 67 65 40 15 247 Initial 25 | . . 25 25 15 5 Average 69 | . 26 61 29 15 117 Maximum Alert Level 1 | . . . . . 1 Low Security (%) 92 | . 100 100 100 100 81 Level 1 7 | . . . . . 18 Level 2 . | . . . . . . Level 3 . | . . . . . . Level 4 . | . . . . . . Level 5 . | . . . . . . High Security . | . . . . . . Max Security . | . . . . . . Squads Dispatched 6 | . 2 . . . 4 Investigation 3 | . 1 . . . 2 Extermination . | . . . . . . Reinforcement 3 | . 1 . . . 2 Assault . | . . . . . . Garrison . | . . . . . . Intercept . | . . . . . . Searches Triggered . | . . . . . . Construction Impeded . | . . . . . . Haulers Reinforced . | . . . . . . Active Scanning Responses . | . . . . . . Cargo Convoy Interrupts . | . . . . . . Stealth | -11 -10 -10 -9 -9 -8 --------- Run | Yrd Mat Min Mat Min Mat Distress Signals 5 | . 1 . 1 . 3 Communications Jammed . | . . . . . . Distress Signals . | . . . . . . Times Spotted 42 | . 10 2 7 . 23 Peak Tracking Total 7 | . 4 2 7 . 6 Tactical Retreats 3 | . . . . . 3 Traps | -11 -10 -10 -9 -9 -8 ------- Run | Yrd Mat Min Mat Min Mat Traps Triggered . | . . . . . . Indirectly . | . . . . . . Trap Hack Attempts . | . . . . . . Triggered . | . . . . . . Disarmed . | . . . . . . Reprogrammed . | . . . . . . Reused . | . . . . . . Traps Extracted . | . . . . . . Installed . | . . . . . . Triggered . | . . . . . . Machines | -11 -10 -10 -9 -9 -8 ---------- Run | Yrd Mat Min Mat Min Mat Machines Disabled 2 | . . . . . 2 Max in Single Turn 1 | . . . . . 1 Machines Repaired . | . . . . . . Machines Dismantled . | . . . . . . Machines Sabotaged . | . . . . . . Overloaded Fab Kills . | . . . . . . Hacking | -11 -10 -10 -9 -9 -8 --------- Run | Yrd Mat Min Mat Min Mat Machines Accessed 6 | . 3 . . . 3 Terminals 3 | . 2 . . . 1 Fabricators . | . . . . . . Repair Stations 2 | . 1 . . . 1 Recycling Units . | . . . . . . Scanalyzers 1 | . . . . . 1 Garrison Access . | . . . . . . Total Hacks 16 | . 8 . . . 8 Successful 10 | . 5 . . . 5 Failed 6 | . 3 . . . 3 Catastrophic . | . . . . . . Database Lockouts . | . . . . . . Manual 13 | . 8 . . . 5 Terminals 10 | . 7 . . . 3 Fabricators . | . . . . . . Repair Stations 4 | . 1 . . . 3 Recycling Units . | . . . . . . Scanalyzers 2 | . . . . . 2 Garrison Access . | . . . . . . Terminal Hacks 2 | . 1 . . . 1 Part Schematic 2 | . 1 . . . 1 Fabricator Hacks . | . . . . . . Repair Station Hacks 1 | . . . . . 1 Scan Component 1 | . . . . . 1 Recycling Unit Hacks . | . . . . . . Scanalyzer . | . . . . . . Garrison Access Hacks . | . . . . . . Unauthorized Hacks 7 | . 4 . . . 3 Terminals 5 | . 3 . . . 2 Track 2 | . 1 . . . 1 Botnet 3 | . 2 . . . 1 Fabricators . | . . . . . . Repair Stations 1 | . 1 . . . . Mechanics 1 | . 1 . . . . Recycling Units . | . . . . . . Scanalyzers 1 | . . . . . 1 Extract 1 | . . . . . 1 Garrison Access . | . . . . . . Data Cores Recovered . | . . . . . . Used . | . . . . . . Hacking Detections 4 | . 3 . . . 1 Full Trace Events 2 | . 1 . . . 1 Feedback Events . | . . . . . . Feedback Blocked . | . . . . . . Robot Schematics Acquired . | . . . . . . Robots Built . | . . . . . . Authchips . | . . . . . . Time . | . . . . . . Total Robot Build Rating . | . . . . . . Part Schematics Acquired 4 | . 1 . . . 3 Parts Built . | . . . . . . Authchips . | . . . . . . Time . | . . . . . . Total Part Build Rating . | . . . . . . Parts Repaired . | . . . . . . Time . | . . . . . . Parts Recycled . | . . . . . . Recycled Matter . | . . . . . . Retrieved Matter . | . . . . . . Retrieved Components . | . . . . . . Parts Scanalyzed . | . . . . . . Part Schematics Acquired . | . . . . . . Parts Damaged . | . . . . . . Bothacking | -11 -10 -10 -9 -9 -8 ------------ Run | Yrd Mat Min Mat Min Mat Used RIF Installer . | . . . . . . Robots Hacked 1 | . . . . . 1 Non-combat . | . . . . . . Combat 1 | . . . . . 1 Robot Hacks Applied 2 | . . . . . 2 parse_system 2 | . . . . . 2 Relay Couplers Released . | . . . . . . Fabnet Peak Effective % . | . . . . . . Robots Rewired . | . . . . . . Allies Hacked . | . . . . . . Hacks Repelled . | . . . . . . Allies | -11 -10 -10 -9 -9 -8 -------- Run | Yrd Mat Min Mat Min Mat Total Allies 2 | . . . . 2 . Largest Group 2 | . . . . 2 2 Highest-Rated Group 43 | . . . . 43 43 Highest-Rated Ally 31 | . . . . 31 31 Total Orders . | . . . . . . Ally Attacks 12 | . . . . . 12 Total Damage 106 | . . . . . 106 Kills 2 | . . . . . 2 Allies Corrupted . | . . . . . . Allies Melted . | . . . . . . Intel | -11 -10 -10 -9 -9 -8 ------- Run | Yrd Mat Min Mat Min Mat Robot Analysis Total . | . . . . . . Derelict Logs Recovered 1 | . . . . 1 . Drone Launches . | . . . . . . Drone Recoveries . | . . . . . . Exploration | -11 -10 -10 -9 -9 -8 ------------- Run | Yrd Mat Min Mat Min Mat Turns Passed 1268 | . 349 197 76 118 528 Spaces Moved 878 | 1 245 146 61 99 326 Core 33 | . . . . . 33 Treads . | . . . . . . Legs 592 | 1 245 146 61 99 40 Wheels . | . . . . . . Hover . | . . . . . . Flight 253 | . . . . . 253 Fastest Speed 34 | 120 120 120 120 120 34 Average Speed 103 | 120 120 120 120 120 76 Slowest Speed 260 | 120 120 120 120 120 260 Overloaded Moves . | . . . . . . Propulsion Burnouts . | . . . . . . Robots Hopped . | . . . . . . Cave-ins Triggered 2 | . . . . . 2 Exploration Rate (%) 26 | 2 50 34 10 35 29 Regions Visited 5 Branch Regions 2 Pre-discovered Areas . | . . . . . . Known Exits Taken . | . . . . . . Unknown Exits Taken 5 | 1 1 1 1 1 . Scrap Searched 1 | . . 1 . . . Spaces Dug 34 | . . . . . 34 Terrain Destroyed 38 | . . . . . 38 Melee 34 | . . . . . 34 Projectile . | . . . . . . AOE 4 | . . . . . 4 Terrain Rammed . | . . . . . . Walls Destroyed . | . . . . . . Machines Disabled . | . . . . . . Actions | -11 -10 -10 -9 -9 -8 --------- Run | Yrd Mat Min Mat Min Mat Total 1044 | . 277 154 64 98 451 Wait 9 | . 4 1 . . 4 Move 873 | . 244 145 60 98 326 Hop . | . . . . . . Pick Up 15 | . 8 . 1 . 6 Fast Attach 11 | . . 1 1 . 9 Attach 10 | . 1 . . . 9 Detach 2 | . . . . . 2 Swap 2 | . 1 . . . 1 Drop 8 | . 5 . 2 . 1 Fire 56 | . 14 7 . . 35 Melee 58 | . . . . . 58 Ram . | . . . . . . Kick . | . . . . . . Crush . | . . . . . . Escape Stasis . | . . . . . . Rewire . | . . . . . . Trap . | . . . . . . Miscellaneous . | . . . . . . Route ------- -11/Scrapyard -10/Materials (discovered 2 exits: [*Mat] / [*Min]) -10/Mines -9/Materials (discovered 2 exits: [*Min] / [*Sto]) -9/Mines -8/Materials History --------- Turn | Location | Event 1 | -11/Scrapyard | Discovered new exit (range 0) 1 | -11/Scrapyard | Entered Materials 285 | -10/Materials | Discovered new exit (range 5) 304 | -10/Materials | Build established: Mutant 308 | -10/Materials | Discovered new exit (range 16) 350 | -10/Materials | Entered Mines 538 | -10/Mines | Discovered new exit (range 8) 547 | -10/Mines | Entered Materials 547 | -9/Materials | Evolved 2 slots: Utility x2 549 | -9/Materials | Discovered new exit (range 14) 616 | -9/Materials | Discovered new exit (range 7) 623 | -9/Materials | Entered Mines 724 | -9/Mines | Discovered new exit (range 12) 741 | -9/Mines | Entered Materials 741 | -8/Materials | Accompanied by 2 allies 741 | -8/Materials | Evolved 2 slots: Propulsion x1, Weapon x1 746 | -8/Materials | Led the pair of lost Derelicts to an unsafe place 889 | -8/Materials | Core integrity fell below 50% 941 | -8/Materials | Lost 12 parts (2p2n3u5w) 1110 | -8/Materials | Crushed by falling debris 1118 | -8/Materials | Crushed by falling debris 1149 | -8/Materials | Lost 3 parts (1n2u) 1217 | -8/Materials | Core integrity fell below 20% 1269 | -8/Materials | Destroyed by X-62 Marksman with Gauss Rifle Last Messages --------------- 01209_ K-01 Serf collects debris. 01213_ Lgt. Ion Engine destroyed. 01216_ Slug penetrates Wall. 01216_ K-01 Serf collects debris. 01219_ System corrupted: Substantial component data lost. 01219_ K-01 Serf collects debris. 01220_ Destroyed Heat Sink. 01220_ Flight Unit destroyed. 01221_ Y-45 Defender destroyed. 01223_ K-01 Serf collects debris. 01236_ Acquired Lgt. Nuclear Core. 01243_ Penetrated by Slug. 01255_ LY5DDAJI%CH3SEBCBFGK%NADSM:JMFAHX D# 01255_ Penetrated by Slug. 01255_ Minigun destroyed. 01258_ Penetrated by Slug. 01266_ Slug penetrates Wall. 01266_ Lgt. Nuclear Core destroyed. 01269_ Penetrated by Slug. Map ----- +----------------------------------------------------+ | ??????????????????????????? | | ??????????????????????????? | | ??????????????????????????? | | ??????????????????????????? | | ??????????????????????????? | | ??????????????????????????? | | ??????????????????????????? | | ???????????????#+##???????? | | ??????????????? #???????? | | ??????????????? ????????? | | ??????######??? ????????? | | ??????# ???? ????????? | | ####### ???? #????????? | | # ! # ????# #????????? | | # # ????# #????????? | | # # ?????# #????????? | | # # ????## ##???????? | | # """x#+###+## ![ ######### | | # """ + %[ | | # """ # | | # Y # ##### ### | | #x ! # #?####+##### | | # # #?# " | | # "T" ####?# # | | # #????# / ### | | ##@####????# #+####+ | | # # #??????# # | | ##?##??????# # | | ???????????# # | | ???????????# # | | ???????????# # | | ???????????########## | | ????????????????????# | | ????????????????????####### | | | | | | | | | | | | | | | | | | | | | | | | | | | | | | | | | +----------------------------------------------------+ Best States ------------- Heat Dissipation 31 Energy Generation 14 Energy Capacity 250 Matter Stores 400 Matter Capacity 400 Sight Range 18 Terrain Scan Density 85 Armor Coverage 300 Resistance: EM 15 Evasion (%) 63 Item Schematics ----------------- Grenade Launcher | -10/Materials | Hacked VTOL Module | -8/Materials | Hacked Particle Gun | -8/Materials | Extracted Sml. Battery | -8/Materials | Extracted Robot Schematics ------------------ None Fabricated ------------ Nothing Alien Tech Used ----------------- None Achievements -------------- None Challenges ------------ None Game ------ Seed MicrowarpDisruptorBroadsword Manual? 0 Play Time 00:28:57 Cumulative 39.6 hours Start 2025.03.25 @ 14:59:18 End 2025.03.25 @ 15:28:05 Sessions 1 Manual Loads 0 Difficulty Rogue Special Mode None Game No. 47 Rogue 47 Adventurer 0 Explorer 0 Win Type - Total 0 Types 0/0/0/0/0/0/0/0/0 Lore% 22 Gallery% 35 Achievement% 29 Wizard Run 0 Options --------- Layout 1 ASCII 0 Keyboard 0 Movement Mouse Keybinds 0 Fullscreen 2 Font 48/Smallcaps Map View 50x35 Zoom Use 0% Tactical HUD 1 Map Filters NONE Filters NONE Steam 1 RUN: d70dde43-c9f2-4cf0-ab7a-c2023e580672